Cogmind - Beta 10.2 @@@ ROGUE MODE // 2021.06.16 @ 04:10:50 Player: Exp. Geonium Core Result: Destroyed by Y-45 Defender with Beam Rifle Performance ------------- Evolutions (2) 1000 Regions Visited (3) 600 Robots Destroyed (34) 170 Value Destroyed (723) 723 Prototype IDs (0) 0 Alien Tech Used (0) 0 Bonus (0) 0 TOTAL SCORE: 2493 Bonus ------- None Cogmind --------- Core Integrity 0/550 Matter 290/300 Energy 100/100 System Corruption 2% Temperature Cool (9) Movement Core (350) Ox6 Location -8/Materials Parts ------- > --- POWER (1) -------- (None) > --- PROPULSION (5) --- (None) > --- UTILITY (3) ------ Large Storage Unit > --- WEAPON (2) ------- Heavy Hammer > --- INVENTORY (10) --- Large Storage Unit Peak State ------------ > --- POWER ------------ (None) > --- PROPULSION ------- Wheel Wheel Compact Wheel > --- UTILITY ---------- Large Storage Unit Hardened Light Armor Plating > --- WEAPON ----------- Flail Flail > --- INVENTORY -------- Large Storage Unit Flail [Rating: 10] Favorites ----------- Power None Propulsion Light Treads Treads Light Treads Leg Aluminum Leg Wheel Wheel Utility Hardened Light Armor Plating Storage Large Storage Unit Protection Hardened Light Armor Plating Weapon Flail Impact Weapon Flail Build | -11 -10 -9 -8 ------- Run | Scr Mat Mat Mat Slots Evolved 4 | . . 2 2 Power . | . . . . Propulsion 3 | . . 2 1 Utility 1 | . . . 1 Weapon . | . . . . Parts Attached 23 | 2 . 10 11 Power . | . . . . Engine . | . . . . Core . | . . . . Reactor . | . . . . Propulsion 11 | 2 . 5 4 Treads 5 | 2 . 3 . Leg 2 | . . 2 . Wheel 4 | . . . 4 Hover . | . . . . Flight . | . . . . Utility 4 | . . 1 3 Device . | . . . . Storage 1 | . . . 1 Processor . | . . . . Hackware . | . . . . Protection 3 | . . 1 2 Artifact . | . . . . Weapon 8 | . . 4 4 Energy Gun . | . . . . Energy Cannon . | . . . . Ballistic Gun . | . . . . Ballistic Cannon . | . . . . Launcher . | . . . . Special Weapon . | . . . . Impact Weapon 8 | . . 4 4 Slashing Weapon . | . . . . Piercing Weapon . | . . . . Special Melee Weapon . | . . . . Unidentified Prototypes . | . . . . Parts Lost 20 | . . 10 10 Power . | . . . . Propulsion 11 | . . 7 4 Utility 3 | . . 1 2 Weapon 6 | . . 2 4 Highest Loss Streak 5 | . . 4 5 Average Slot Usage (%) 37 | . 28 40 38 Treads 11 | . 28 18 . Leg 1 | . . 3 . Wheel 5 | . . . 12 Storage 2 | . . . 5 Protection 3 | . . 1 6 Impact Weapon 13 | . . 16 14 Naked Turns . | . . . . Heaviest Build 25 | . . 5 25 Greatest Support 60 | 40 40 60 36 Greatest Overweight (x) 3 | . . 1 3 Average Overweight (x) . | . . . . Largest Inventory Capacity 10 | 4 4 4 10 Average Capacity 5 | 4 4 4 7 Most Carried 4 | . . 4 4 Average Carried 2 | . . 3 2 Final Capacity 10 | 4 4 4 10 Final Carried 4 | . . 4 1 Class Distribution -------------------- 95% | Mutant 4% | Scavenger-Mutant Dominant Class ---------------- Mutant | -10/Materials Mutant | -9/Materials Mutant | -8/Materials Resources | -11 -10 -9 -8 ----------- Run | Scr Mat Mat Mat Matter Collected 390 | 220 . 90 80 Remotely . | . . . . Salvage Created 1242 | . 41 593 608 Parts 31 | . . 14 17 Haulers Intercepted 2 | . . 2 . Recyclers Shooed 2 | . . . 2 Parts Field Recycled . | . . . . Retrieved Matter . | . . . . Parts Self-Destructed . | . . . . Prevented . | . . . . Kills | -11 -10 -9 -8 ------- Run | Scr Mat Mat Mat Combat Hostiles Destroyed 21 | . . 11 10 Melee 12 | . . 6 6 Classes Destroyed 10 | . 1 6 3 Worker 2 | . . 1 1 Builder 1 | . . . 1 Tunneler 1 | . . . 1 Hauler 2 | . . 2 . Recycler 3 | . 1 . 2 Operator 2 | . . 1 1 Watcher 2 | . . . 2 Swarmer 9 | . . 3 6 Grunt 7 | . . 4 3 Sentry 5 | . . 4 1 Best Kill Streak 5 | . 1 3 5 Combat Bots Only 4 | . . 2 4 Max Kills in Single Turn 1 | . 1 1 1 Gunslinging . | . . . . Exploded . | . . . . Melee 1 | . . 1 1 Uniques/NPCs Destroyed . | . . . . Combat | -11 -10 -9 -8 -------- Run | Scr Mat Mat Mat Damage Taken 2791 | . 122 1279 1390 Core 912 | . 38 318 556 Absorbed by Shields . | . . . . Core Remaining (%) 68 | 100 84 20 . Volleys Fired . | . . . . Largest . | . . . . Hottest . | . . . . Shots Fired . | . . . . Gun . | . . . . Cannon . | . . . . Launcher . | . . . . Special . | . . . . Kinetic . | . . . . Thermal . | . . . . Explosive . | . . . . Electromagnetic . | . . . . Robot Hit Streak . | . . . . Robot Miss Streak . | . . . . Penetration Max . | . . . . Secondary Targets . | . . . . Shots Hit Robots 118 | . . 53 65 Core Hits 20 | . 2 7 11 Critical Hits . | . . . . Critical Kills . | . . . . Critical Parts Destroyed . | . . . . Melee Attacks 160 | . . 68 92 Impact 160 | . . 68 92 Slashing . | . . . . Piercing . | . . . . Sneak Attacks 16 | . . 6 10 Combat Hostiles . | . . . . Follow-up Attacks 14 | . . 3 11 Damage Inflicted 3418 | . 8 1449 1961 Guns . | . . . . Cannons . | . . . . Explosions . | . . . . Melee 3410 | . . 1449 1961 Ramming 8 | . 8 . . Kinetic . | . . . . Thermal . | . . . . Explosive . | . . . . Electromagnetic . | . . . . Impact 3410 | . . 1449 1961 Slashing . | . . . . Piercing . | . . . . Highest Corruption 2 | . . . 2 Average Corruption 2 | . . . 2 Corruption Purged . | . . . . Effects 1 | . . . 1 Heat Flow Errors 1 | . . . 1 Overload Shots . | . . . . Overflow Damage 562 | . . 275 287 Projectiles . | . . . . Explosions . | . . . . Melee 562 | . . 275 287 Knockbacks 18 | . . 4 14 Impact 14 | . . 4 10 Kinetic . | . . . . Secondary 4 | . . . 4 Self-Inflicted Damage . | . . . . Shots . | . . . . Rammed 5 | . 5 . . Targets Rammed 6 | . 6 . . Kicked . | . . . . Crushed 1 | . 1 . . Highest Temperature 199 | . . . 199 Average Temperature 101 | . . . 101 Received Heat Transfer 1029 | . 66 477 486 Siege Activations . | . . . . Robots Corrupted . | . . . . Combat Hostiles . | . . . . Parts Fried 18 | . . 7 11 Impact Corruptions 33 | . . 16 17 Robots Melted . | . . . . Combat Hostiles . | . . . . Parts Melted . | . . . . Heat Transferred . | . . . . Parts Sabotaged . | . . . . Parts Stolen . | . . . . Parts Stripped . | . . . . Power Chain Reactions . | . . . . Missiles Intercepted . | . . . . Alert | -11 -10 -9 -8 ------- Run | Scr Mat Mat Mat Peak Influence 378 | . 35 378 369 Initial 108 | . . 14 108 Average 192 | . 6 201 253 Maximum Alert Level 1 | . . 1 1 Low Security (%) 45 | 100 100 40 30 Level 1 54 | . . 59 69 Level 2 . | . . . . Level 3 . | . . . . Level 4 . | . . . . Level 5 . | . . . . High Security . | . . . . Max Security . | . . . . Squads Dispatched 2 | . . 1 1 Investigation . | . . . . Extermination . | . . . . Reinforcement 2 | . . 1 1 Assault . | . . . . Garrison . | . . . . Intercept . | . . . . Construction Impeded . | . . . . Haulers Reinforced . | . . . . Stealth | -11 -10 -9 -8 --------- Run | Scr Mat Mat Mat Distress Signals 5 | . 1 1 3 Communications Jammed . | . . . . Distress Signals . | . . . . Times Spotted 48 | . 5 24 19 Peak Tracking Total 6 | . 4 6 6 Tactical Retreats 9 | . . 7 2 Traps | -11 -10 -9 -8 ------- Run | Scr Mat Mat Mat Traps Triggered 1 | . . . 1 Indirectly . | . . . . Trap Hack Attempts . | . . . . Triggered . | . . . . Disarmed . | . . . . Reprogrammed . | . . . . Reused . | . . . . Traps Extracted . | . . . . Installed . | . . . . Triggered 1 | . . . 1 Machines | -11 -10 -9 -8 ---------- Run | Scr Mat Mat Mat Machines Disabled . | . . . . Max in Single Turn . | . . . . Machines Sabotaged . | . . . . Garrisons Compromised . | . . . . Overloaded Fab Kills . | . . . . Fab Network Shutdowns . | . . . . Hacking | -11 -10 -9 -8 --------- Run | Scr Mat Mat Mat Machines Accessed 5 | . 1 2 2 Terminals 5 | . 1 2 2 Fabricators . | . . . . Repair Stations . | . . . . Recycling Units . | . . . . Scanalyzers . | . . . . Garrison Access . | . . . . Total Hacks 10 | . 2 5 3 Successful 1 | . . . 1 Failed 9 | . 2 5 2 Catastrophic 3 | . 1 1 1 Database Lockouts . | . . . . Manual 8 | . . 5 3 Terminals 10 | . 2 5 3 Fabricators . | . . . . Repair Stations . | . . . . Recycling Units . | . . . . Scanalyzers . | . . . . Garrison Access . | . . . . Terminal Hacks 1 | . . . 1 Registered Components 1 | . . . 1 Fabricator Hacks . | . . . . Repair Station Hacks . | . . . . Recycling Unit Hacks . | . . . . Scanalyzer . | . . . . Garrison Access Hacks . | . . . . Unauthorized Hacks . | . . . . Terminals . | . . . . Fabricators . | . . . . Repair Stations . | . . . . Recycling Units . | . . . . Scanalyzers . | . . . . Garrison Access . | . . . . Data Cores Recovered . | . . . . Used . | . . . . Hacking Detections 5 | . 1 2 2 Full Trace Events 2 | . 1 1 . Feedback Events . | . . . . Feedback Blocked . | . . . . Robot Schematics Acquired . | . . . . Robots Built . | . . . . Matter . | . . . . Time . | . . . . Total Robot Build Rating . | . . . . Part Schematics Acquired . | . . . . Parts Built . | . . . . Matter . | . . . . Time . | . . . . Total Part Build Rating . | . . . . Parts Repaired . | . . . . Time . | . . . . Parts Recycled . | . . . . Recycled Matter . | . . . . Retrieved Matter . | . . . . Retrieved Components . | . . . . Parts Scanalyzed . | . . . . Part Schematics Acquired . | . . . . Parts Damaged . | . . . . Bothacking | -11 -10 -9 -8 ------------ Run | Scr Mat Mat Mat Used RIF Installer . | . . . . Robots Hacked . | . . . . Non-combat . | . . . . Combat . | . . . . Robot Hacks Applied . | . . . . Relay Couplers Released . | . . . . Robots Rewired . | . . . . Allies Hacked . | . . . . Hacks Repelled . | . . . . Allies | -11 -10 -9 -8 -------- Run | Scr Mat Mat Mat Total Allies . | . . . . Largest Group . | . . . . Highest-Rated Group . | . . . . Highest-Rated Ally . | . . . . Total Orders . | . . . . Ally Attacks . | . . . . Total Damage . | . . . . Kills . | . . . . Allies Corrupted . | . . . . Allies Melted . | . . . . Intel | -11 -10 -9 -8 ------- Run | Scr Mat Mat Mat Robot Analysis Total . | . . . . Derelict Logs Recovered . | . . . . Drone Launches . | . . . . Drone Recoveries . | . . . . Exploration | -11 -10 -9 -8 ------------- Run | Scr Mat Mat Mat Turns Passed 1100 | 38 138 443 481 Spaces Moved 755 | 26 88 319 322 Core 410 | 5 11 298 96 Treads 119 | 21 77 21 . Legs . | . . . . Wheels 226 | . . . 226 Hover . | . . . . Flight . | . . . . Fastest Speed 50 | 50 50 50 50 Average Speed 90 | 138 146 78 83 Slowest Speed 200 | 160 160 160 200 Overloaded Moves . | . . . . Propulsion Burnouts . | . . . . Robots Hopped . | . . . . Cave-ins Triggered . | . . . . Exploration Rate (%) 24 | 3 21 35 40 Regions Visited 3 Branch Regions . Pre-discovered Areas . | . . . . Known Exits Taken . | . . . . Unknown Exits Taken 3 | 1 1 1 . Scrap Searched . | . . . . Spaces Dug 5 | . . 1 4 Terrain Destroyed 5 | . . 1 4 Melee 5 | . . 1 4 Projectile . | . . . . AOE . | . . . . Terrain Rammed . | . . . . Walls Destroyed . | . . . . Machines Disabled . | . . . . Actions | -11 -10 -9 -8 --------- Run | Scr Mat Mat Mat Total 941 | 27 93 411 410 Wait 14 | . . 11 3 Move 752 | 25 87 318 322 Hop . | . . . . Pick Up 7 | . . 7 . Fast Attach 16 | 2 . 6 8 Attach 7 | . . 4 3 Detach 1 | . . 1 . Swap . | . . . . Drop . | . . . . Fire . | . . . . Melee 138 | . . 64 74 Ram . | . . . . Kick . | . . . . Crush 6 | . 6 . . Escape Stasis . | . . . . Rewire . | . . . . Trap . | . . . . Miscellaneous . | . . . . Route ------- -11/Scrapyard -10/Materials -9/Materials -8/Materials (discovered 1 exit: [*Fac]) History --------- Turn | Location | Event 13 | -11/Scrapyard | Discovered new exit (range 15) 39 | -11/Scrapyard | Entered Materials 171 | -10/Materials | Discovered new exit (range 12) 177 | -10/Materials | Entered another Materials area 177 | -9/Materials | Evolved 2 slots: Propulsion x2 314 | -9/Materials | Build established: Mutant 478 | -9/Materials | Lost 4 parts (3n1w) 525 | -9/Materials | Core integrity fell below 50% 557 | -9/Materials | Discovered new exit (range 8) 620 | -9/Materials | Entered another Materials area 620 | -8/Materials | Evolved 2 slots: Propulsion x1, Utility x1 825 | -8/Materials | Discovered new exit (range 4) 1074 | -8/Materials | Core integrity fell below 50% 1093 | -8/Materials | Core integrity fell below 20% 1101 | -8/Materials | Destroyed by Y-45 Defender with Beam Rifle Last Messages --------------- 01014_ System corrupted (+2). 01027_ U-05 Engineer lays Concrete. 01031_ K-01 Serf collects debris. 01031_ W-25 Informer sends out distress signal. 01032_ Destroyed Imp. Hover Unit. 01032_ W-25 Informer system corrupted by crushing effect. 01032_ W-25 Informer knocked back. 01033_ W-25 Informer system terminally corrupted. 01033_ Imp. Hover Unit fried. 01033_ Lgt. Deuterium Engine fried. 01034_ K-01 Serf collects debris. 01037_ Hrd. Light Armor Plating destroyed. 01062_ Wheel destroyed. 01062_ Flail destroyed. 01064_ Acquired Hvy. Hammer. 01067_ System corrupted: Heat flow error (+230). 01067_ Acquired Hvy. Hammer. 01083_ Hvy. Hammer follow-up attack on Y-45 Defender. 01086_ Com. Wheel destroyed. 01089_ Hvy. Hammer destroyed. Map ----- +----------------------------------------------------+ | ?????????????????????????????????????????????????? | | ?????????????????????????????????????????????????? | | ?????????????????????????????????????????????????? | | ?????????????????????????????????????????????????? | | ?????????????????????????????????????????????????? | | ?????????????????????????????????????????????????? | | ?????????????????????????????????????????????????? | | ?????????????????????????????????????????????????? | | ?????????????????????????????????????????????????? | | ?????????????????????????????????????????????????? | | ?????????????????????????????????????????????????? | | ?????????????????????????????????????????????????? | | ?????????????????????????????????????????????????? | | ?????????????????????????????????????????????????? | | ?????????????????????????????????????????????????? | | ?????????????????????????????????????????????????? | | ?????????????????????????????????????????????????? | | ?????????????????????????????????????????????????? | | ????????????????????????###########??????????????? | | ????????????????????????#[ #??????????????? | | ????????????????????????# #??????????????? | | ????????????????????????#/// """ #??????????????? | | ???????????????????????##// """ #??????????????? | | ???????????????????????# """ #??????????????? | | ???????????????????????## #??????????????? | | ????????????????????????#@ #??????????????? | | ????????????????????????#Y gY #??????????????? | | ????????????????????????#####/#########??????????? | | ???????????????????????????# + #??????????? | | ???????????????????????##### # #??????????? | | ???????????????????????+ # """ #??????????? | | ???????????????????????##### + """ #??????????? | | ???????????????????????????# # """ #??????????? | | ???????????????????????????# # #??????????? | | ???????????????????????????# #?######??????????? | | ???????????????????????????# #?#######?????????? | | ???????????????????????????# # ] / #?????????? | | ???????????????????????????# # #?????????? | | ???????????????????????????# + "" **#?????????? | | ???????????????????????????# # S"" **#?????????? | | ???????????????????????????# # "" #?????????? | | ???????????????############# #########?????????? | | ?????????????? ####???????? | | ????????????? ????? | | ????????????? ####???????? | | ?????????????# ############/#########??????????? | | ?????????????# #??????# #??????????????? | | ?????????????# #??????# #??????????????? | | ?????????????# #??????# ! [ #??????????????? | | ?????????????# #??????# #####??????????? | +----------------------------------------------------+ Best States ------------- Heat Dissipation 31 Energy Generation 5 Energy Capacity 100 Matter Stores 300 Matter Capacity 300 Sight Range 16 Terrain Scan Density 10 Armor Coverage 225 Evasion (%) 50 Recoil Reduction 3 Item Schematics ----------------- None Robot Schematics ------------------ None Fabricated ------------ Nothing Alien Tech Used ----------------- None Achievements -------------- None Challenges ------------ None Game ------ Seed DeepAerolevCannon Manual? 0 Play Time 00:15:47 Cumulative 123.2 hours Start 2021.06.16 @ 04:00:02 End 2021.06.16 @ 04:10:50 Sessions 1 Manual Loads 0 Difficulty Rogue Special Mode None Game No. 179 Rogue 179 Adventurer 0 Explorer 0 Win Type - Total 5 Types 4/0/0/1/0/0/0/0/0 Lore% 49 Gallery% 72 Achievement% 58 Wizard Run 0 Options --------- ASCII 0 Keyboard 0 Movement Numpad Keybinds 0 Fullscreen 1 Font 18/Terminus Map View 76x50 Tactical HUD 1 Map Filters NONE Filters NONE Steam 1 RUN: f8d7b85f-68c6-457a-937c-3b1c940aaa96